[Event "Titled Tuesday Blitz July 27 2021"]
[White "Torkkola, Henri"]
[Black "Tologon tegin, Semetei"]
[WhiteFideId "507660"]
[BlackFideId "13800574"]
[WhiteElo "2137"]
[BlackElo "2224"]
[Result "0-1"]
[Round "07"]
[TimeControl "180+1"]
[Date "2021.07.27"]
[WhiteClock "0:00:07"]
[BlackClock "0:00:21"]

1. d4 {[%clk 0:02:55]}  Nf6 {[%clk 0:02:59]} 2. Bf4 {[%clk 0:02:55]}  c5 {[%clk 0:02:58]} 3. e3 {[%clk 0:02:55]}  cxd4 {[%clk 0:02:58]} 4. exd4 {[%clk 0:02:55]}  d5 {[%clk 0:02:59]} 5. c3 {[%clk 0:02:46]}  Nc6 {[%clk 0:02:59]} 6. Nd2 {[%clk 0:02:45]}  Bg4 {[%clk 0:02:58]} 7. Qb3 {[%clk 0:02:45]}  Qd7 {[%clk 0:02:49]} 8. Ngf3 {[%clk 0:02:42]}  a6 {[%clk 0:02:49]} 9. Bd3 {[%clk 0:02:40]}  e6 {[%clk 0:02:48]} 10. O-O {[%clk 0:02:40]}  Be7 {[%clk 0:02:47]} 11. Rfe1 {[%clk 0:02:39]}  O-O {[%clk 0:02:45]} 12. Ne5 {[%clk 0:02:37]}  Nxe5 {[%clk 0:02:45]} 13. dxe5 {[%clk 0:02:37]}  Ne8 {[%clk 0:02:32]} 14. Re3 {[%clk 0:02:36]}  Bh5 {[%clk 0:02:30]} 15. Rae1 {[%clk 0:02:32]}  b5 {[%clk 0:02:28]} 16. Nf3 {[%clk 0:02:21]}  Rb8 {[%clk 0:02:12]} 17. a3 {[%clk 0:02:11]}  Nc7 {[%clk 0:02:06]} 18. Nd4 {[%clk 0:02:09]}  Bg6 {[%clk 0:01:52]} 19. Bxg6 {[%clk 0:02:08]}  fxg6 {[%clk 0:01:52]} 20. Bg3 {[%clk 0:01:57]}  a5 {[%clk 0:01:51]} 21. Qd1 {[%clk 0:01:50]}  b4 {[%clk 0:01:45]} 22. cxb4 {[%clk 0:01:50]}  axb4 {[%clk 0:01:46]} 23. a4 {[%clk 0:01:50]}  Bc5 {[%clk 0:01:33]} 24. b3 {[%clk 0:01:46]}  Na6 {[%clk 0:01:26]} 25. Qg4 {[%clk 0:01:41]}  Bxd4 {[%clk 0:01:25]} 26. Qxd4 {[%clk 0:01:42]}  Rfc8 {[%clk 0:01:25]} 27. h4 {[%clk 0:01:33]}  Nc5 {[%clk 0:01:13]} 28. h5 {[%clk 0:01:30]}  gxh5 {[%clk 0:01:12]} 29. Qh4 {[%clk 0:01:26]}  Qf7 {[%clk 0:01:08]} 30. Rf3 {[%clk 0:01:23]}  Qg6 {[%clk 0:01:09]} 31. Bf4 {[%clk 0:01:23]}  Ne4 {[%clk 0:01:05]} 32. Rh3 {[%clk 0:01:10]}  Rc2 {[%clk 0:01:04]} 33. Be3 {[%clk 0:01:10]}  Rc3 {[%clk 0:00:59]} 34. Rb1 {[%clk 0:00:58]}  Nxf2 {[%clk 0:00:43]} 35. Qxf2 {[%clk 0:00:40]}  Qxb1+ {[%clk 0:00:42]} 36. Kh2 {[%clk 0:00:40]}  Qe4 {[%clk 0:00:35]} 37. Rf3 {[%clk 0:00:31]}  Rxb3 {[%clk 0:00:31]} 38. Bc5 {[%clk 0:00:14]}  Rxf3 {[%clk 0:00:30]} 39. gxf3 {[%clk 0:00:15]}  Qxe5+ {[%clk 0:00:30]} 40. f4 {[%clk 0:00:15]}  Qe4 {[%clk 0:00:25]} 41. Bd6 {[%clk 0:00:13]}  Rd8 {[%clk 0:00:23]} 42. Be5 {[%clk 0:00:13]}  b3 {[%clk 0:00:22]} 43. Qb6 {[%clk 0:00:11]}  Rf8 {[%clk 0:00:21]} 44. Qc7 {[%clk 0:00:07]}  Qc2+ {[%clk 0:00:21]} 0-1


[Site "https://www.chess.com"]

[Event "Titled Tuesday Blitz July 27 2021"]
[White "Urazayev, Arystanbek"]
[Black "Chernobay, Artem"]
[WhiteFideId "13709810"]
[BlackFideId "4167406"]
[WhiteElo "2795"]
[BlackElo "2571"]
[Result "1-0"]
[Round "07"]
[TimeControl "180+1"]
[Date "2021.07.27"]
[WhiteClock "0:00:25"]
[BlackClock "0:00:15"]

1. d4 {[%clk 0:03:00]}  Nf6 {[%clk 0:02:59]} 2. c4 {[%clk 0:03:00]}  g6 {[%clk 0:02:59]} 3. Nc3 {[%clk 0:03:00]}  Bg7 {[%clk 0:03:00]} 4. e4 {[%clk 0:03:00]}  d6 {[%clk 0:03:00]} 5. Be2 {[%clk 0:03:01]}  O-O {[%clk 0:02:59]} 6. h4 {[%clk 0:03:02]}  c5 {[%clk 0:02:52]} 7. d5 {[%clk 0:03:01]}  e6 {[%clk 0:02:52]} 8. h5 {[%clk 0:03:02]}  exd5 {[%clk 0:02:45]} 9. exd5 {[%clk 0:03:03]}  a6 {[%clk 0:02:32]} 10. h6 {[%clk 0:03:00]}  Bh8 {[%clk 0:02:31]} 11. Bg5 {[%clk 0:03:00]}  Nbd7 {[%clk 0:02:20]} 12. Nf3 {[%clk 0:02:59]}  Qc7 {[%clk 0:02:02]} 13. O-O {[%clk 0:02:57]}  Ng4 {[%clk 0:01:59]} 14. Qd2 {[%clk 0:02:51]}  Nde5 {[%clk 0:01:55]} 15. Nxe5 {[%clk 0:02:50]}  Nxe5 {[%clk 0:01:55]} 16. f4 {[%clk 0:02:41]}  Ng4 {[%clk 0:01:55]} 17. Bxg4 {[%clk 0:02:37]}  Bxg4 {[%clk 0:01:54]} 18. f5 {[%clk 0:02:37]}  Bd4+ {[%clk 0:01:53]} 19. Be3 {[%clk 0:02:32]}  Bxe3+ {[%clk 0:01:49]} 20. Qxe3 {[%clk 0:02:33]}  Rae8 {[%clk 0:01:42]} 21. Qg5 {[%clk 0:02:28]}  Qe7 {[%clk 0:01:22]} 22. Qxg4 {[%clk 0:02:28]}  Qe3+ {[%clk 0:01:22]} 23. Rf2 {[%clk 0:02:28]}  Re5 {[%clk 0:01:20]} 24. Qh3 {[%clk 0:02:08]}  Qd4 {[%clk 0:01:11]} 25. Rd1 {[%clk 0:02:06]}  Qxc4 {[%clk 0:01:10]} 26. fxg6 {[%clk 0:02:04]}  hxg6 {[%clk 0:01:06]} 27. h7+ {[%clk 0:02:00]}  Kg7 {[%clk 0:01:06]} 28. Rxf7+ {[%clk 0:01:32]}  Kxf7 {[%clk 0:01:03]} 29. h8=Q {[%clk 0:01:19]}  Rxh8 {[%clk 0:01:02]} 30. Qxh8 {[%clk 0:01:19]}  Rf5 {[%clk 0:01:01]} 31. Qh7+ {[%clk 0:01:10]}  Kf6 {[%clk 0:00:59]} 32. Qh8+ {[%clk 0:01:01]}  Kf7 {[%clk 0:00:59]} 33. Re1 {[%clk 0:00:55]}  b5 {[%clk 0:00:24]} 34. Qh7+ {[%clk 0:00:50]}  Kf8 {[%clk 0:00:22]} 35. Qe7+ {[%clk 0:00:48]}  Kg8 {[%clk 0:00:22]} 36. Qe8+ {[%clk 0:00:32]}  Kg7 {[%clk 0:00:21]} 37. Re7+ {[%clk 0:00:31]}  Kh6 {[%clk 0:00:15]} 38. Qh8+ {[%clk 0:00:30]}  Kg5 {[%clk 0:00:15]} 39. Ne4+ {[%clk 0:00:25]}  Kg4 {[%clk 0:00:15]} 40. Qh3+ {[%clk 0:00:25]} 1-0


[Site "https://www.chess.com"]

[Event "Titled Tuesday Blitz July 27 2021"]
[White "Vasquez Schroeder, Rodrigo"]
[Black "Dushyant Sharma"]
[WhiteFideId "3400042"]
[BlackFideId "25065130"]
[WhiteElo "2779"]
[BlackElo "2570"]
[Result "1-0"]
[Round "07"]
[TimeControl "180+1"]
[Date "2021.07.27"]
[WhiteClock "0:01:41"]
[BlackClock "0:01:33"]

1. e4 {[%clk 0:03:00]}  d5 {[%clk 0:02:58]} 2. exd5 {[%clk 0:02:57]}  Nf6 {[%clk 0:02:58]} 3. d4 {[%clk 0:02:56]}  Bg4 {[%clk 0:02:58]} 4. Be2 {[%clk 0:02:56]}  Bxe2 {[%clk 0:02:58]} 5. Qxe2 {[%clk 0:02:57]}  Qxd5 {[%clk 0:02:58]} 6. Nf3 {[%clk 0:02:58]}  e6 {[%clk 0:02:58]} 7. c4 {[%clk 0:02:57]}  Qh5 {[%clk 0:02:57]} 8. O-O {[%clk 0:02:56]}  Nbd7 {[%clk 0:02:55]} 9. Nc3 {[%clk 0:02:51]}  Bd6 {[%clk 0:02:54]} 10. c5 {[%clk 0:02:50]}  Be7 {[%clk 0:02:51]} 11. Bf4 {[%clk 0:02:43]}  Nd5 {[%clk 0:02:48]} 12. Nxd5 {[%clk 0:02:42]}  Qxd5 {[%clk 0:02:49]} 13. Bxc7 {[%clk 0:02:42]}  O-O {[%clk 0:02:48]} 14. Rfd1 {[%clk 0:02:40]}  Bf6 {[%clk 0:02:47]} 15. b4 {[%clk 0:02:39]}  a5 {[%clk 0:02:44]} 16. b5 {[%clk 0:02:35]}  a4 {[%clk 0:02:45]} 17. Rac1 {[%clk 0:02:33]}  Rfc8 {[%clk 0:02:44]} 18. Be5 {[%clk 0:02:26]}  h6 {[%clk 0:02:37]} 19. h3 {[%clk 0:02:25]}  Ra5 {[%clk 0:02:35]} 20. Rb1 {[%clk 0:02:22]}  a3 {[%clk 0:02:24]} 21. Rb3 {[%clk 0:02:21]}  Rca8 {[%clk 0:02:23]} 22. c6 {[%clk 0:02:14]}  bxc6 {[%clk 0:02:20]} 23. b6 {[%clk 0:02:15]}  Qxb3 {[%clk 0:02:04]} 24. axb3 {[%clk 0:02:13]}  a2 {[%clk 0:02:05]} 25. Ra1 {[%clk 0:02:09]}  Bxe5 {[%clk 0:02:02]} 26. Nxe5 {[%clk 0:02:06]}  Nxb6 {[%clk 0:02:00]} 27. Nxc6 {[%clk 0:02:05]}  Ra3 {[%clk 0:02:01]} 28. Qc2 {[%clk 0:01:58]}  Nd5 {[%clk 0:01:59]} 29. g3 {[%clk 0:01:52]}  g6 {[%clk 0:01:54]} 30. Qc4 {[%clk 0:01:49]}  Kg7 {[%clk 0:01:51]} 31. Nb4 {[%clk 0:01:46]}  Nf6 {[%clk 0:01:33]} 32. Qc2 {[%clk 0:01:42]}  Rb8 {[%clk 0:01:33]} 33. Rxa2 {[%clk 0:01:41]} 1-0


[Site "https://www.chess.com"]

[Event "Titled Tuesday Blitz July 27 2021"]
[White "Xie, Bryan"]
[Black "Moksh Amit Doshi"]
[WhiteFideId "30941296"]
[BlackFideId "25064967"]
[WhiteElo "1899"]
[BlackElo "2245"]
[Result "0-1"]
[Round "07"]
[TimeControl "180+1"]
[Date "2021.07.27"]
[WhiteClock "0:00:10"]
[BlackClock "0:00:11"]

1. e4 {[%clk 0:03:00]}  e5 {[%clk 0:02:58]} 2. Nf3 {[%clk 0:02:57]}  Nc6 {[%clk 0:02:51]} 3. Bc4 {[%clk 0:02:56]}  Bc5 {[%clk 0:02:48]} 4. O-O {[%clk 0:02:54]}  Nf6 {[%clk 0:02:48]} 5. d3 {[%clk 0:02:52]}  d6 {[%clk 0:02:44]} 6. Nc3 {[%clk 0:02:50]}  a6 {[%clk 0:02:42]} 7. a3 {[%clk 0:02:31]}  O-O {[%clk 0:02:40]} 8. Bg5 {[%clk 0:02:27]}  h6 {[%clk 0:02:39]} 9. Bh4 {[%clk 0:02:27]}  g5 {[%clk 0:02:29]} 10. Nxg5 {[%clk 0:02:23]}  hxg5 {[%clk 0:01:59]} 11. Bxg5 {[%clk 0:02:24]}  Be6 {[%clk 0:02:00]} 12. Qf3 {[%clk 0:02:03]}  Kg7 {[%clk 0:01:57]} 13. Ne2 {[%clk 0:01:56]}  Rh8 {[%clk 0:01:39]} 14. Ng3 {[%clk 0:01:50]}  Kg6 {[%clk 0:01:32]} 15. h4 {[%clk 0:01:45]}  Nd4 {[%clk 0:01:09]} 16. Qd1 {[%clk 0:01:44]}  Bxc4 {[%clk 0:00:51]} 17. dxc4 {[%clk 0:01:42]}  Ne6 {[%clk 0:00:51]} 18. Qf3 {[%clk 0:01:27]}  Nd4 {[%clk 0:00:44]} 19. Qd1 {[%clk 0:01:13]}  Qd7 {[%clk 0:00:44]} 20. c3 {[%clk 0:01:11]}  Ne6 {[%clk 0:00:44]} 21. Bd2 {[%clk 0:00:57]}  Rxh4 {[%clk 0:00:42]} 22. Nf5 {[%clk 0:00:50]}  Rh5 {[%clk 0:00:29]} 23. g4 {[%clk 0:00:42]}  Rh3 {[%clk 0:00:22]} 24. g5 {[%clk 0:00:28]}  Nxe4 {[%clk 0:00:16]} 25. Qg4 {[%clk 0:00:26]}  Nf4 {[%clk 0:00:16]} 26. Bxf4 {[%clk 0:00:26]}  Qxf5 {[%clk 0:00:15]} 27. Qxf5+ {[%clk 0:00:13]}  Kxf5 {[%clk 0:00:16]} 28. Bc1 {[%clk 0:00:13]}  Rah8 {[%clk 0:00:14]} 29. b4 {[%clk 0:00:10]}  Rh1+ {[%clk 0:00:12]} 30. Kg2 {[%clk 0:00:09]}  R8h2+ {[%clk 0:00:13]} 31. Kf3 {[%clk 0:00:09]}  Rxf1 {[%clk 0:00:11]} 32. bxc5 {[%clk 0:00:10]}  Rfxf2+ {[%clk 0:00:10]} 33. Ke3 {[%clk 0:00:10]}  Rh3# {[%clk 0:00:11]} 0-1


[Site "https://www.chess.com"]

[Event "Titled Tuesday Blitz July 27 2021"]
[White "Zhigalko, Sergei"]
[Black "Tristan, Leonardo"]
[WhiteFideId "13502956"]
[BlackFideId "113816"]
[WhiteElo "2662"]
[BlackElo "2404"]
[Result "1-0"]
[Round "07"]
[TimeControl "180+1"]
[Date "2021.07.27"]
[WhiteClock "0:00:18"]
[BlackClock "0:00:12"]

1. e4 {[%clk 0:03:00]}  c5 {[%clk 0:02:59]} 2. Nf3 {[%clk 0:03:00]}  Nc6 {[%clk 0:03:00]} 3. c3 {[%clk 0:03:00]}  Nf6 {[%clk 0:02:58]} 4. e5 {[%clk 0:03:00]}  Nd5 {[%clk 0:02:59]} 5. Bc4 {[%clk 0:03:01]}  Nb6 {[%clk 0:02:58]} 6. Bb3 {[%clk 0:03:01]}  c4 {[%clk 0:02:57]} 7. Bc2 {[%clk 0:03:02]}  d6 {[%clk 0:02:56]} 8. exd6 {[%clk 0:03:03]}  Qxd6 {[%clk 0:02:56]} 9. O-O {[%clk 0:03:03]}  Bg4 {[%clk 0:02:55]} 10. Re1 {[%clk 0:03:03]}  e6 {[%clk 0:02:55]} 11. b3 {[%clk 0:03:02]}  Be7 {[%clk 0:02:43]} 12. Na3 {[%clk 0:02:58]}  cxb3 {[%clk 0:02:41]} 13. axb3 {[%clk 0:02:59]}  O-O {[%clk 0:02:41]} 14. d4 {[%clk 0:02:58]}  Rac8 {[%clk 0:02:38]} 15. Nc4 {[%clk 0:02:57]}  Nxc4 {[%clk 0:02:35]} 16. bxc4 {[%clk 0:02:57]}  b6 {[%clk 0:02:27]} 17. d5 {[%clk 0:02:31]}  Na5 {[%clk 0:02:11]} 18. Ba3 {[%clk 0:02:20]}  Qd7 {[%clk 0:02:10]} 19. Ba4 {[%clk 0:01:18]}  Qb7 {[%clk 0:01:41]} 20. d6 {[%clk 0:01:17]}  Bf6 {[%clk 0:00:47]} 21. d7 {[%clk 0:01:16]}  Rcd8 {[%clk 0:00:46]} 22. Bxf8 {[%clk 0:01:16]}  Kxf8 {[%clk 0:00:47]} 23. c5 {[%clk 0:00:59]}  bxc5 {[%clk 0:00:28]} 24. Rb1 {[%clk 0:00:44]}  Qc7 {[%clk 0:00:28]} 25. Qd3 {[%clk 0:00:41]}  Bf5 {[%clk 0:00:25]} 26. Qxf5 {[%clk 0:00:42]}  Bxc3 {[%clk 0:00:21]} 27. Ng5 {[%clk 0:00:31]}  Bf6 {[%clk 0:00:10]} 28. Nxh7+ {[%clk 0:00:29]}  Ke7 {[%clk 0:00:10]} 29. Nxf6 {[%clk 0:00:27]}  gxf6 {[%clk 0:00:11]} 30. Qf3 {[%clk 0:00:22]}  c4 {[%clk 0:00:10]} 31. Qa3+ {[%clk 0:00:19]}  Qd6 {[%clk 0:00:11]} 32. Qxd6+ {[%clk 0:00:17]}  Kxd6 {[%clk 0:00:12]} 33. Red1+ {[%clk 0:00:18]}  Kc5 {[%clk 0:00:12]} 34. Rb5+ {[%clk 0:00:18]} 1-0


[Site "https://www.chess.com"]

[Event "Titled Tuesday Blitz July 27 2021"]
[White "Zubov, Alexander"]
[Black "Ahmadzada, Ahmad"]
[WhiteFideId "14109409"]
[BlackFideId "13413007"]
[WhiteElo "2740"]
[BlackElo "2226"]
[Result "1-0"]
[Round "07"]
[TimeControl "180+1"]
[Date "2021.07.27"]
[WhiteClock "0:00:19"]
[BlackClock "0:00:02"]

1. d4 {[%clk 0:03:00]}  Nf6 {[%clk 0:02:59]} 2. c4 {[%clk 0:03:01]}  Nc6 {[%clk 0:03:00]} 3. Nf3 {[%clk 0:03:00]}  e6 {[%clk 0:03:00]} 4. a3 {[%clk 0:03:00]}  d6 {[%clk 0:03:00]} 5. Nc3 {[%clk 0:03:00]}  g6 {[%clk 0:03:00]} 6. d5 {[%clk 0:03:01]}  Ne7 {[%clk 0:02:59]} 7. dxe6 {[%clk 0:03:01]}  Bxe6 {[%clk 0:02:58]} 8. Nd4 {[%clk 0:02:54]}  Bg7 {[%clk 0:02:50]} 9. Nxe6 {[%clk 0:02:54]}  fxe6 {[%clk 0:02:51]} 10. g3 {[%clk 0:02:55]}  O-O {[%clk 0:02:50]} 11. Bh3 {[%clk 0:02:54]}  Qd7 {[%clk 0:02:36]} 12. O-O {[%clk 0:02:50]}  Rae8 {[%clk 0:02:33]} 13. e4 {[%clk 0:02:38]}  Nc6 {[%clk 0:02:19]} 14. Be3 {[%clk 0:02:33]}  Qf7 {[%clk 0:02:11]} 15. Rc1 {[%clk 0:02:02]}  e5 {[%clk 0:01:59]} 16. b3 {[%clk 0:01:57]}  Kh8 {[%clk 0:01:51]} 17. f3 {[%clk 0:01:41]}  h5 {[%clk 0:01:37]} 18. Nd5 {[%clk 0:01:33]}  Kh7 {[%clk 0:01:30]} 19. Qd2 {[%clk 0:01:32]}  Nd4 {[%clk 0:01:21]} 20. Bxd4 {[%clk 0:01:30]}  exd4 {[%clk 0:01:19]} 21. Qd3 {[%clk 0:01:06]}  c6 {[%clk 0:00:49]} 22. Nf4 {[%clk 0:00:57]}  Bh6 {[%clk 0:00:15]} 23. Qxd4 {[%clk 0:00:56]}  Ng8 {[%clk 0:00:08]} 24. Qxd6 {[%clk 0:00:39]}  Bxf4 {[%clk 0:00:07]} 25. Qxf4 {[%clk 0:00:38]}  Qxf4 {[%clk 0:00:08]} 26. gxf4 {[%clk 0:00:39]}  Rxf4 {[%clk 0:00:08]} 27. Rcd1 {[%clk 0:00:39]}  Re7 {[%clk 0:00:08]} 28. Kg2 {[%clk 0:00:37]}  Nf6 {[%clk 0:00:06]} 29. Kg3 {[%clk 0:00:37]}  g5 {[%clk 0:00:06]} 30. Bf5+ {[%clk 0:00:38]}  Kg7 {[%clk 0:00:05]} 31. h3 {[%clk 0:00:34]}  Ne8 {[%clk 0:00:02]} 32. Rd8 {[%clk 0:00:33]}  Kf6 {[%clk 0:00:02]} 33. Rfd1 {[%clk 0:00:32]}  h4+ {[%clk 0:00:02]} 34. Kg2 {[%clk 0:00:32]}  Ng7 {[%clk 0:00:02]} 35. R8d6+ {[%clk 0:00:25]}  Ke5 {[%clk 0:00:01]} 36. Bg4 {[%clk 0:00:25]}  Ref7 {[%clk 0:00:01]} 37. b4 {[%clk 0:00:24]}  Re7 {[%clk 0:00:01]} 38. c5 {[%clk 0:00:24]}  Ref7 {[%clk 0:00:02]} 39. Rg6 {[%clk 0:00:24]}  Ne8 {[%clk 0:00:02]} 40. Rd8 {[%clk 0:00:23]}  Nf6 {[%clk 0:00:02]} 41. Rd6 {[%clk 0:00:19]}  Nxg4 {[%clk 0:00:02]} 42. Rge6# {[%clk 0:00:19]} 1-0


[Site "https://www.chess.com"]

[Event "Titled Tuesday Blitz July 27 2021"]
[White "deribas12345"]
[Black "Tsotsonava, Elene"]
[BlackFideId "13615939"]
[WhiteElo "2556"]
[BlackElo "1847"]
[Result "0-1"]
[Round "07"]
[TimeControl "180+1"]
[Date "2021.07.27"]
[WhiteClock "0:00:02"]
[BlackClock "0:00:29"]

1. d4 {[%clk 0:02:02]}  d5 {[%clk 0:02:57]} 2. Nf3 {[%clk 0:02:00]}  Nf6 {[%clk 0:02:57]} 3. g3 {[%clk 0:01:58]}  c5 {[%clk 0:02:56]} 4. Bg2 {[%clk 0:01:58]}  cxd4 {[%clk 0:02:55]} 5. O-O {[%clk 0:01:56]}  Nc6 {[%clk 0:02:49]} 6. Nxd4 {[%clk 0:01:56]}  Nxd4 {[%clk 0:02:48]} 7. Qxd4 {[%clk 0:01:56]}  g6 {[%clk 0:02:48]} 8. c4 {[%clk 0:01:55]}  Bg7 {[%clk 0:02:49]} 9. cxd5 {[%clk 0:01:55]}  O-O {[%clk 0:02:49]} 10. Nc3 {[%clk 0:01:54]}  e6 {[%clk 0:02:49]} 11. Bg5 {[%clk 0:01:26]}  Nxd5 {[%clk 0:02:36]} 12. Qxg7+ {[%clk 0:01:22]}  Kxg7 {[%clk 0:02:35]} 13. Bxd8 {[%clk 0:01:22]}  Rxd8 {[%clk 0:02:36]} 14. Rfd1 {[%clk 0:01:17]}  Bd7 {[%clk 0:02:26]} 15. Nxd5 {[%clk 0:01:15]}  exd5 {[%clk 0:02:23]} 16. Bxd5 {[%clk 0:01:11]}  Bc6 {[%clk 0:02:23]} 17. Bxc6 {[%clk 0:01:10]}  bxc6 {[%clk 0:02:23]} 18. e3 {[%clk 0:01:07]}  Rab8 {[%clk 0:02:20]} 19. b3 {[%clk 0:01:06]}  Kf6 {[%clk 0:02:16]} 20. Kf1 {[%clk 0:01:02]}  Ke6 {[%clk 0:02:14]} 21. Ke2 {[%clk 0:01:02]}  Rd5 {[%clk 0:02:15]} 22. Rac1 {[%clk 0:00:57]}  Rxd1 {[%clk 0:02:10]} 23. Rxd1 {[%clk 0:00:57]}  Rb6 {[%clk 0:02:06]} 24. Rc1 {[%clk 0:00:48]}  Ra6 {[%clk 0:02:06]} 25. a4 {[%clk 0:00:48]}  Rb6 {[%clk 0:02:06]} 26. Rc3 {[%clk 0:00:48]}  Kd5 {[%clk 0:02:03]} 27. f3 {[%clk 0:00:46]}  c5 {[%clk 0:02:03]} 28. e4+ {[%clk 0:00:44]}  Kd6 {[%clk 0:01:59]} 29. Kd3 {[%clk 0:00:39]}  Rb4 {[%clk 0:01:58]} 30. Kc2 {[%clk 0:00:39]}  h5 {[%clk 0:01:53]} 31. h4 {[%clk 0:00:35]}  a5 {[%clk 0:01:49]} 32. Rd3+ {[%clk 0:00:35]}  Kc6 {[%clk 0:01:42]} 33. Kc3 {[%clk 0:00:32]}  c4 {[%clk 0:01:41]} 34. bxc4 {[%clk 0:00:26]}  Rxa4 {[%clk 0:01:42]} 35. Kd4 {[%clk 0:00:25]}  Kd6 {[%clk 0:01:37]} 36. e5+ {[%clk 0:00:20]}  Ke6 {[%clk 0:01:36]} 37. f4 {[%clk 0:00:20]}  Rb4 {[%clk 0:01:30]} 38. Kc5 {[%clk 0:00:20]}  Rb8 {[%clk 0:01:27]} 39. Rd6+ {[%clk 0:00:19]}  Kf5 {[%clk 0:01:23]} 40. Rf6+ {[%clk 0:00:19]}  Kg4 {[%clk 0:01:23]} 41. Rxf7 {[%clk 0:00:19]}  Kxg3 {[%clk 0:01:24]} 42. e6 {[%clk 0:00:20]}  a4 {[%clk 0:01:20]} 43. e7 {[%clk 0:00:20]}  Re8 {[%clk 0:01:20]} 44. Kd6 {[%clk 0:00:20]}  a3 {[%clk 0:01:19]} 45. Rf8 {[%clk 0:00:21]}  a2 {[%clk 0:01:18]} 46. Rxe8 {[%clk 0:00:21]}  a1=Q {[%clk 0:01:18]} 47. Rf8 {[%clk 0:00:10]}  Qd4+ {[%clk 0:01:13]} 48. Ke6 {[%clk 0:00:09]}  Qxc4+ {[%clk 0:01:12]} 49. Kd7 {[%clk 0:00:09]}  Qd5+ {[%clk 0:01:11]} 50. Kc7 {[%clk 0:00:10]}  Qc5+ {[%clk 0:01:10]} 51. Kd7 {[%clk 0:00:10]}  Qa7+ {[%clk 0:01:06]} 52. Ke6 {[%clk 0:00:09]}  Qe3+ {[%clk 0:01:04]} 53. Kf7 {[%clk 0:00:10]}  Qxf4+ {[%clk 0:01:04]} 54. Kg8 {[%clk 0:00:10]}  Qc4+ {[%clk 0:01:03]} 55. Kh8 {[%clk 0:00:08]}  Qd4+ {[%clk 0:01:02]} 56. Kg8 {[%clk 0:00:08]}  Qd5+ {[%clk 0:01:02]} 57. Rf7 {[%clk 0:00:07]}  Qe6 {[%clk 0:00:53]} 58. Kf8 {[%clk 0:00:07]}  Qd6 {[%clk 0:00:52]} 59. Kg7 {[%clk 0:00:01]}  Qe5+ {[%clk 0:00:51]} 60. Kg8 {[%clk 0:00:02]}  Kxh4 {[%clk 0:00:46]} 61. Rg7 {[%clk 0:00:01]}  Qe6+ {[%clk 0:00:45]} 62. Kf8 {[%clk 0:00:02]}  Qd6 {[%clk 0:00:43]} 63. Rf7 {[%clk 0:00:03]}  g5 {[%clk 0:00:41]} 64. Kg8 {[%clk 0:00:03]}  Qe6 {[%clk 0:00:40]} 65. Kf8 {[%clk 0:00:04]}  Qh6+ {[%clk 0:00:38]} 66. Kg8 {[%clk 0:00:04]}  Qe6 {[%clk 0:00:34]} 67. Kf8 {[%clk 0:00:04]}  Qxe7+ {[%clk 0:00:35]} 68. Kxe7 {[%clk 0:00:04]}  g4 {[%clk 0:00:35]} 69. Kf6 {[%clk 0:00:05]}  g3 {[%clk 0:00:35]} 70. Kf5 {[%clk 0:00:04]}  Kh3 {[%clk 0:00:31]} 71. Kf4 {[%clk 0:00:02]}  g2 {[%clk 0:00:29]} 72. Rg7 {[%clk 0:00:02]}  Kh2 {[%clk 0:00:29]} 0-1


[Site "https://www.chess.com"]

[Event "Titled Tuesday Blitz July 27 2021"]
[White "Ahmadzada, Ahmad"]
[Black "Ulko, Jaroslav"]
[WhiteFideId "13413007"]
[BlackFideId "4116658"]
[WhiteElo "2226"]
[BlackElo "2304"]
[Result "1-0"]
[Round "08"]
[TimeControl "180+1"]
[Date "2021.07.27"]
[WhiteClock "0:00:07"]
[BlackClock "0:00:13"]

1. Nf3 {[%clk 0:03:00]}  Nf6 {[%clk 0:02:55]} 2. g3 {[%clk 0:03:01]}  g6 {[%clk 0:02:53]} 3. Bg2 {[%clk 0:03:01]}  Bg7 {[%clk 0:02:53]} 4. O-O {[%clk 0:03:02]}  O-O {[%clk 0:02:52]} 5. d3 {[%clk 0:03:00]}  d6 {[%clk 0:02:47]} 6. c4 {[%clk 0:02:58]}  e5 {[%clk 0:02:47]} 7. Nc3 {[%clk 0:02:58]}  Re8 {[%clk 0:02:47]} 8. Bg5 {[%clk 0:02:55]}  h6 {[%clk 0:02:46]} 9. Bxf6 {[%clk 0:02:54]}  Bxf6 {[%clk 0:02:47]} 10. Nd2 {[%clk 0:02:54]}  Bg7 {[%clk 0:02:45]} 11. Rb1 {[%clk 0:02:49]}  a5 {[%clk 0:02:42]} 12. a3 {[%clk 0:02:48]}  c6 {[%clk 0:02:42]} 13. b4 {[%clk 0:02:48]}  axb4 {[%clk 0:02:42]} 14. axb4 {[%clk 0:02:49]}  e4 {[%clk 0:02:37]} 15. Qc2 {[%clk 0:02:13]}  exd3 {[%clk 0:02:27]} 16. Qxd3 {[%clk 0:01:58]}  Nd7 {[%clk 0:02:22]} 17. Qc2 {[%clk 0:01:43]}  Ra3 {[%clk 0:01:59]} 18. Rb3 {[%clk 0:01:37]}  Rxb3 {[%clk 0:01:53]} 19. Nxb3 {[%clk 0:01:33]}  Ne5 {[%clk 0:01:45]} 20. b5 {[%clk 0:01:22]}  Bd7 {[%clk 0:01:22]} 21. bxc6 {[%clk 0:01:06]}  bxc6 {[%clk 0:01:22]} 22. Ne4 {[%clk 0:01:06]}  Be6 {[%clk 0:01:19]} 23. Nd4 {[%clk 0:01:01]}  Bxc4 {[%clk 0:00:30]} 24. Nxc6 {[%clk 0:00:59]}  Qc7 {[%clk 0:00:19]} 25. Nxe5 {[%clk 0:00:55]}  Bxe5 {[%clk 0:00:14]} 26. Rc1 {[%clk 0:00:45]}  d5 {[%clk 0:00:14]} 27. Nf6+ {[%clk 0:00:26]}  Bxf6 {[%clk 0:00:13]} 28. Bxd5 {[%clk 0:00:27]}  Rc8 {[%clk 0:00:08]} 29. Bxc4 {[%clk 0:00:18]}  Kg7 {[%clk 0:00:09]} 30. e3 {[%clk 0:00:17]}  h5 {[%clk 0:00:09]} 31. h4 {[%clk 0:00:16]}  Rb8 {[%clk 0:00:09]} 32. Qd3 {[%clk 0:00:15]}  Rb2 {[%clk 0:00:09]} 33. Rc2 {[%clk 0:00:13]}  Rb1+ {[%clk 0:00:09]} 34. Kg2 {[%clk 0:00:11]}  Be5 {[%clk 0:00:10]} 35. Bd5 {[%clk 0:00:10]}  Qd6 {[%clk 0:00:10]} 36. Rc6 {[%clk 0:00:10]}  Qd7 {[%clk 0:00:09]} 37. e4 {[%clk 0:00:08]}  Rb4 {[%clk 0:00:09]} 38. Ra6 {[%clk 0:00:07]}  Rd4 {[%clk 0:00:09]} 39. Qe3 {[%clk 0:00:06]}  Rxd5 {[%clk 0:00:09]} 40. exd5 {[%clk 0:00:04]}  Qxd5+ {[%clk 0:00:10]} 41. Qf3 {[%clk 0:00:04]}  Qc4 {[%clk 0:00:11]} 42. Ra7 {[%clk 0:00:04]}  Bf6 {[%clk 0:00:11]} 43. Rb7 {[%clk 0:00:04]}  Qd4 {[%clk 0:00:11]} 44. Rb3 {[%clk 0:00:04]}  Qe5 {[%clk 0:00:12]} 45. Rd3 {[%clk 0:00:05]}  Qa1 {[%clk 0:00:12]} 46. Rd5 {[%clk 0:00:06]}  Qb2 {[%clk 0:00:12]} 47. Rd7 {[%clk 0:00:06]}  Qa1 {[%clk 0:00:13]} 48. Qd5 {[%clk 0:00:07]} 1-0


[Site "https://www.chess.com"]